Workbook

Sheet Classic 8 - Nagawaukee
A1: Classic 8 Mega Mini
A2: Day 1 at Nagawaukee
A3: Day 2 at The Legend at Merrill Hills
A4: 8/23 & 8/24
A6: First Name | B6: Last Name | C6: Team | D6: Out | E6: In | F6: Total | H6: Team Standings | I6: Day 1 | J6: Day 2 | K6: Total
A7: Madeline | B7: Fiebig | C7: Kettle Moraine | D7: 37 | E7: 37 | F7: =SUM(D7:E7) -> 74 | H7: Kettle Moraine | I7: 163 | J7: 172 | K7: 335
A8: Jenna | B8: Anderson | C8: Kettle Moraine | D8: 35 | E8: 42 | F8: =SUM(D8:E8) -> 77 | H8: Arrowhead | I8: 167 | J8: 169 | K8: 336
A9: Kaitlyn | B9: Amtmann | C9: Arrowhead | D9: 39 | E9: 40 | F9: =SUM(D9:E9) -> 79 | H9: Oconomowoc | I9: 182 | J9: 174 | K9: 356
A10: Nora | B10: Cerroni | C10: Waukesha North/South/West | D10: 38 | E10: 42 | F10: =SUM(D10:E10) -> 80 | H10: Waukesha N/W/S | I10: 186 | J10: 183 | K10: 369
A11: Julia | B11: Fischer | C11: Mukwonago | D11: 40 | E11: 41 | F11: =SUM(D11:E11) -> 81 | H11: Mukwonago | I11: 185 | J11: 186 | K11: 371
A12: Julia | B12: Larson | C12: Arrowhead | D12: 42 | E12: 40 | F12: =SUM(D12:E12) -> 82 | H12: Catholic Memorial | I12: 211 | J12: 212 | K12: 423
A13: Lauren | B13: Peterson | C13: Arrowhead | D13: 41 | E13: 43 | F13: =SUM(D13:E13) -> 84 | H13: Muskego | I13: 218 | J13: 223 | K13: 441
A14: Lauren | B14: Lupinek | C14: Oconomowoc | D14: 44 | E14: 41 | F14: =SUM(D14:E14) -> 85
A15: Katie | B15: Westbrook | C15: Oconomowoc | D15: 44 | E15: 44 | F15: =SUM(D15:E15) -> 88
A16: Alex | B16: Kubly | C16: Oconomowoc | D16: 47 | E16: 43 | F16: =SUM(D16:E16) -> 90
A17: Chloe | B17: Moore | C17: Kettle Moraine | D17: 44 | E17: 46 | F17: =SUM(D17:E17) -> 90
A18: Lillia | B18: Rather | C18: Waukesha North/South/West | D18: 47 | E18: 44 | F18: =SUM(D18:E18) -> 91
A19: Audrey | B19: Kaiser | C19: Arrowhead | D19: 45 | E19: 46 | F19: =SUM(D19:E19) -> 91
A20: Audrey | B20: Fryda | C20: Catholic Memorial | D20: 42 | E20: 49 | F20: =SUM(D20:E20) -> 91
A21: Paige | B21: Westerman | C21: Oconomowoc | D21: 47 | E21: 46 | F21: =SUM(D21:E21) -> 93
A22: Ava | B22: Kacsur | C22: Kettle Moraine | D22: 47 | E22: 47 | F22: =SUM(D22:E22) -> 94
A23: Lia | B23: Maxwell | C23: Arrowhead | D23: 46 | E23: 48 | F23: =SUM(D23:E23) -> 94
A24: Victoria | B24: Frutchey | C24: Mukwonago | D24: 48 | E24: 47 | F24: =SUM(D24:E24) -> 95
A25: Alexa | B25: Reed | C25: Arrowhead | D25: 47 | E25: 48 | F25: =SUM(D25:E25) -> 95
A26: Ella | B26: Woda | C26: Mukwonago | D26: 49 | E26: 47 | F26: =SUM(D26:E26) -> 96
A27: Norah | B27: Mantey | C27: Kettle Moraine | D27: 46 | E27: 50 | F27: =SUM(D27:E27) -> 96
A28: Cayden | B28: Weiland | C28: Waukesha North/South/West | D28: 51 | E28: 46 | F28: =SUM(D28:E28) -> 97
A29: Avalee | B29: Hernandez | C29: Mukwonago | D29: 48 | E29: 51 | F29: =SUM(D29:E29) -> 99
A30: Aubrey | B30: Westerman | C30: Oconomowoc | D30: 49 | E30: 51 | F30: =SUM(D30:E30) -> 100
A31: Keira | B31: Kundert | C31: Waukesha North/South/West | D31: 50 | E31: 51 | F31: =SUM(D31:E31) -> 101
A32: Hailey | B32: Karns | C32: Kettle Moraine | D32: 52 | E32: 50 | F32: =SUM(D32:E32) -> 102
A33: Ella | B33: Sabol | C33: Oconomowoc | D33: 52 | E33: 50 | F33: =SUM(D33:E33) -> 102
A34: Grace | B34: Lee | C34: Waukesha North/South/West | D34: 49 | E34: 53 | F34: =SUM(D34:E34) -> 102
A35: Ellie | B35: Karras | C35: Mukwonago | D35: 52 | E35: 51 | F35: =SUM(D35:E35) -> 103
A36: Alex | B36: Nines | C36: Catholic Memorial | D36: 49 | E36: 56 | F36: =SUM(D36:E36) -> 105
A37: Anna | B37: Cerroni | C37: Waukesha North/South/West | D37: 59 | E37: 49 | F37: =SUM(D37:E37) -> 108
A38: Tessa | B38: Buckmaster | C38: Muskego | D38: 57 | E38: 52 | F38: =SUM(D38:E38) -> 109
A39: Maureen | B39: Schlifske | C39: Catholic Memorial | D39: 61 | E39: 52 | F39: =SUM(D39:E39) -> 113
A40: Sydney | B40: Prunuske | C40: Muskego | D40: 55 | E40: 58 | F40: =SUM(D40:E40) -> 113
A41: Ava | B41: Marx | C41: Muskego | D41: 59 | E41: 55 | F41: =SUM(D41:E41) -> 114
A42: MaryGrace | B42: Schlifske | C42: Catholic Memorial | D42: 59 | E42: 55 | F42: =SUM(D42:E42) -> 114
A43: Martina | B43: Hudaj | C43: Muskego | D43: 57 | E43: 57 | F43: =SUM(D43:E43) -> 114
A44: Kelly | B44: Baxter | C44: Muskego | D44: 61 | E44: 54 | F44: =SUM(D44:E44) -> 115
A45: Maddie | B45: Flores | C45: Catholic Memorial | D45: 62 | E45: 59 | F45: =SUM(D45:E45) -> 121
A46: Olivia | B46: Spader | C46: Muskego | D46: 47 | E46: 0 | F46: =SUM(D46:E46) -> 47
A47: Clare | B47: Smith | C47: Mukwonago | D47: 0 | E47: 55 | F47: =SUM(D47:E47) -> 55
A48: Avery | B48: Donahue | C48: Muskego | D48: 0 | E48: 57 | F48: =SUM(D48:E48) -> 57
A49: Ella | B49: Chitwood | C49: Mukwonago | D49: 58 | E49: 0 | F49: =SUM(D49:E49) -> 58
A50: Hannah | B50: Piette | C50: Catholic Memorial | D50: 0 | E50: 76 | F50: =SUM(D50:E50) -> 76
